Cogmind - Beta 11.1 *** ADVENTURER MODE // 2022.08.15 @ 16:04:42 Player: darlorth Result: Destroyed by Y-72 Warden with Railgun Performance ------------- Evolutions (7) 3500 Regions Visited (21) 4200 Robots Destroyed (258) 1290 Value Destroyed (15091) 15091 Prototype IDs (13) 260 Alien Tech Used (0) 0 Bonus (8345) 8345 TOTAL SCORE: 32686 Bonus ------- Triggered Max Security 1000 High Alert Combat Kills 1441 Follower Combat Kills 2640 Entered Garrisons 1400 Used RIF Installer 3000 Aligned with FarCom 300 Friendly Fire -1436 Cogmind --------- Core Integrity 0/1300 Matter 300/300 Energy 92/100 System Corruption 8% Temperature Cool (66) Movement Core (100) Ox1 Location -3/Testing Parts ------- > --- POWER (1) -------- (None) > --- PROPULSION (6) --- (None) > --- UTILITY (12) ----- Armor Integrity Analyzer Improved System Guard > --- WEAPON (2) ------- Vibroblade > --- INVENTORY (5) ---- Improved Cooling System Matter Compressor (250) Advanced Terrain Scan Processor Advanced Weapon Cycler Relay Coupler [Duelist] (36) Peak State ------------ > --- POWER ------------ Micro Antimatter Reactor > --- PROPULSION ------- Armored Heavy Treads Armored Heavy Treads Armored Heavy Treads > --- UTILITY ---------- Coolant Network Huge Storage Unit Energy Well Enhanced Optical Array Armor Integrity Analyzer Precision Energy Filter Relay Coupler [Swarmer] Relay Coupler [Cutter] Relay Coupler [Duelist] Improved System Guard Drone Bay > --- WEAPON ----------- Neutron Cannon Nova Cannon > --- INVENTORY -------- Micro Antimatter Reactor Medium Treads Medium Treads Improved Cooling System Compact Battery Matter Compressor Advanced Terrain Scanner Advanced Terrain Scan Processor Precision Energy Filter Advanced Weapon Cycler Relay Coupler [Swarmer] Relay Coupler [Brawler] Relay Coupler [Duelist] Relay Coupler [Sentry] Relay Coupler [Demolisher] Improved System Guard Dispersion Rifle Neutron Cannon Neutron Cannon Linear Accelerator Smartbomb Launcher Improved Remote Datajack Segregator Heavy Pick [Rating: 145] Favorites ----------- Power Neutrino Core Engine Reinforced Deuterium Engine Power Core Neutrino Core Reactor Micro Antimatter Reactor Propulsion Armored Medium Treads Treads Armored Medium Treads Leg VSS Leg Wheel Compact Wheel Hover Unit Antigrav System Utility Huge Storage Unit Device Advanced Weight Redist. System Storage Huge Storage Unit Processor Machine Analyzer Hackware Relay Coupler [Sentry] Protection Hardened Medium Armor Plating Weapon Chainsword Energy Gun Heavy Laser Energy Cannon Heavy Particle Cannon Ballistic Gun Gauss Rifle Ballistic Cannon Linear Accelerator Launcher Missile Launcher Special Weapon Improved Remote Datajack Impact Weapon Heavy Hammer Slashing Weapon Chainsword Piercing Weapon Heavy Pick Special Melee Weapon Improved Datajack Build | -11 -10 -10 -10 -9 -8 -8 -8 -7 -7 -7 -7 -6 -6 -6 -6 -5 -5 -4 -4 -3 -3 ------- Run | Scr Mat Min Exi Min Mat Gar Mat Fac Gar Fac Gar Fac Gar Fac Gar Fac Gar Fac Gar Res Tes Slots Evolved 14 | . . . . . 4 . . 2 . . . 2 . . . 2 . 2 . 2 . Power . | . . . . . . . . . . . . . . . . . . . . . . Propulsion 4 | . . . . . 2 . . . . . . . . . . . . . . 2 . Utility 10 | . . . . . 2 . . 2 . . . 2 . . . 2 . 2 . . . Weapon . | . . . . . . . . . . . . . . . . . . . . . . Parts Attached 369 | 7 7 . . 1 10 20 30 2 19 31 33 4 30 3 14 25 22 1 33 60 17 Power 21 | 2 1 . . . . 1 2 . 2 2 . . 2 . . 3 . . 2 4 . Engine 9 | 2 1 . . . . 1 2 . 1 . . . 1 . . 1 . . . . . Core 7 | . . . . . . . . . 1 2 . . 1 . . 1 . . 1 1 . Reactor 5 | . . . . . . . . . . . . . . . . 1 . . 1 3 . Propulsion 75 | 2 . . . . 3 4 4 . 4 8 4 2 8 . 4 9 . . 5 15 3 Treads 49 | 2 . . . . 1 4 4 . 4 . . . 2 . 4 5 . . 5 15 3 Leg 20 | . . . . . . . . . . 8 4 2 6 . . . . . . . . Wheel 2 | . . . . . 2 . . . . . . . . . . . . . . . . Hover 4 | . . . . . . . . . . . . . . . . 4 . . . . . Flight . | . . . . . . . . . . . . . . . . . . . . . . Utility 117 | 1 3 . . . 5 5 5 1 5 9 11 1 8 2 4 6 14 . 12 21 4 Device 35 | . 1 . . . 3 1 1 . 3 3 3 1 2 2 . 4 2 . . 8 1 Storage 9 | 1 1 . . . 1 . . . . 1 . . . . . . 1 . 2 2 . Processor 6 | . 1 . . . . . . . . 2 . . . . . . . . . 3 . Hackware 54 | . . . . . 1 2 4 1 1 1 8 . 2 . 4 2 11 . 10 6 1 Protection 13 | . . . . . . 2 . . 1 2 . . 4 . . . . . . 2 2 Artifact . | . . . . . . . . . . . . . . . . . . . . . . Weapon 156 | 2 3 . . 1 2 10 19 1 8 12 18 1 12 1 6 7 8 1 14 20 10 Energy Gun 15 | 2 2 . . . . 2 2 . . . . . 1 1 1 2 . . 2 . . Energy Cannon 22 | . . . . . . 3 4 . 2 . . . . . . 2 . . . 7 4 Ballistic Gun 23 | . 1 . . . . 1 3 . 2 3 5 . 3 . 3 1 . . . 1 . Ballistic Cannon 22 | . . . . . . . . . 2 3 . . . . . . 5 1 4 6 1 Launcher 11 | . . . . 1 . 2 2 . 1 . 1 . 1 . . . . . 1 1 1 Special Weapon 16 | . . . . . . . . . . . . . . . . 2 3 . 5 3 3 Impact Weapon 3 | . . . . . 2 1 . . . . . . . . . . . . . . . Slashing Weapon 18 | . . . . . . . . 1 . 5 6 1 2 . . . . . 2 . 1 Piercing Weapon 2 | . . . . . . . . . . . . . . . . . . . . 2 . Special Melee Weapon 24 | . . . . . . 1 8 . 1 1 6 . 5 . 2 . . . . . . Unidentified Prototypes 8 | . . . . . 1 . . . . 1 . . . . . 1 . . . 4 1 Parts Lost 75 | . 1 . . . . 4 . . 7 2 3 1 8 . 3 6 2 . 8 13 17 Power 8 | . . . . . . 1 . . 2 . . . 2 . . . . . 1 1 1 Propulsion 24 | . . . . . . 2 . . 2 . 2 1 2 . 1 2 . . 1 5 6 Utility 32 | . . . . . . 1 . . 2 1 1 . 3 . 1 4 2 . 4 5 8 Weapon 11 | . 1 . . . . . . . 1 1 . . 1 . 1 . . . 2 2 2 Highest Loss Streak 12 | . 1 . . . . 1 . . 3 1 1 1 3 . 2 3 1 . 4 5 12 To Critical Strikes 3 | . . . . . . 1 . . . . . . 1 . . . . . . 1 . Average Slot Usage (%) 93 | . 97 100 100 100 90 97 96 83 89 97 97 89 88 99 98 91 98 84 90 86 59 Engine 3 | . 12 14 14 14 9 8 8 7 3 1 . . 1 6 6 4 . . . . . Core 2 | . . . . . . . . . 2 5 7 6 4 . . . 5 5 4 . . Treads 18 | . 28 28 28 28 18 32 35 30 27 3 . . 4 . 14 18 23 21 20 22 10 Leg 7 | . . . . . . . . . . 26 29 23 19 26 10 . . . . . . Device 5 | . 3 . . . 7 7 9 7 13 4 2 5 9 19 5 8 . . . 4 5 Storage 7 | . 14 14 14 14 16 14 9 7 7 7 7 6 6 6 6 5 5 5 10 5 6 Processor 3 | . 8 14 14 14 1 . . . . 6 7 6 6 6 1 . . . . 6 12 Hackware 24 | . . . . . 7 2 14 14 15 18 24 26 13 20 37 38 50 42 42 29 11 Protection 2 | . . . . . . 9 . . 1 5 . . 8 . . . . . . 2 . Energy Gun 3 | . 25 14 14 14 5 5 6 5 . . . . 4 6 6 4 . . 3 . . Energy Cannon 1 | . . . . . . 6 3 7 2 . . . . . . 3 . . . 3 5 Ballistic Gun 2 | . 2 14 14 13 . 2 3 . 4 3 1 . 2 . 5 1 . . . . . Ballistic Cannon 1 | . . . . . . . . . 6 3 . . . . . . 5 6 5 1 . Slashing Weapon 1 | . . . . . . . . 1 . 6 7 9 1 . . . . . . . 1 Special Melee Weapon 1 | . . . . . . 1 3 . . . 4 3 2 6 . . . . . . . Naked Turns . | . . . . . . . . . . . . . . . . . . . . . . Heaviest Build 135 | 14 30 25 25 25 31 46 40 40 52 108 99 92 118 110 113 117 118 118 120 135 127 Greatest Support 180 | 40 40 40 40 40 40 80 80 80 82 82 54 71 71 65 80 108 108 108 108 180 180 Greatest Overweight (x) 36 | . . . . . . 1 1 . . 3 2 1 6 1 5 36 1 1 1 1 3 Average Overweight (x) . | . . . . . . . . . . 1 1 1 1 1 1 1 . 1 . . . Largest Inventory Capacity 25 | 8 15 15 15 15 15 15 15 15 15 25 25 25 25 25 25 25 25 25 25 25 25 Average Capacity 21 | 6 12 15 15 15 15 15 15 15 15 22 25 25 25 25 25 25 25 25 25 25 18 Most Carried 25 | 5 9 12 15 15 15 15 15 15 15 25 25 25 25 25 25 25 25 25 25 25 25 Average Carried 19 | 2 6 8 13 14 14 14 14 14 13 19 23 24 23 24 23 23 24 25 23 23 17 Final Capacity 25 | 8 15 15 15 15 15 15 15 15 15 25 25 25 25 25 25 25 25 25 25 25 5 Final Carried 25 | 5 7 12 15 15 15 15 15 15 15 25 25 24 25 24 23 24 25 25 25 24 5 Class Distribution -------------------- 34% | Botlord-Mutant 34% | Bothacker-Mutant 14% | Mutant 9% | Hacker-Mutant 3% | Scavenger-Mutant 3% | Hacker-Skirmisher Dominant Class ---------------- Mutant | -10/Materials Mutant | -10/Mines Mutant | -10/Exiles Mutant | -9/Mines Hacker-Mutant | -8/Materials Bothacker-Mutant | -8/Garrison Bothacker-Mutant | -8/Materials Hacker-Mutant | -7/Factory Hacker-Skirmisher | -7/Garrison Hacker-Mutant | -7/Factory Bothacker-Mutant | -7/Garrison Bothacker-Mutant | -6/Factory Bothacker-Mutant | -6/Garrison Bothacker-Mutant | -6/Factory Scavenger-Mutant | -6/Garrison Botlord-Mutant | -5/Factory Botlord-Mutant | -5/Garrison Botlord-Mutant | -4/Factory Botlord-Mutant | -4/Garrison Botlord-Mutant | -3/Research Mutant | -3/Testing Resources | -11 -10 -10 -10 -9 -8 -8 -8 -7 -7 -7 -7 -6 -6 -6 -6 -5 -5 -4 -4 -3 -3 ----------- Run | Scr Mat Min Exi Min Mat Gar Mat Fac Gar Fac Gar Fac Gar Fac Gar Fac Gar Fac Gar Res Tes Matter Collected 8642 | 270 115 18 . 11 46 443 565 . 1010 793 508 25 446 . 211 384 1000 136 808 1672 181 Remotely . | . . . . . . . . . . . . . . . . . . . . . . Salvage Created 10175 | 121 821 42 . 8 46 545 777 . 1193 1212 672 49 464 . 120 762 243 91 499 1536 974 Parts 457 | 7 55 4 . 3 . 37 51 . 49 49 31 2 22 . 6 27 7 . 19 68 20 Haulers Intercepted 3 | . . . . . . . 1 . . . . . . . . . . . . 2 . Recyclers Shooed 8 | . 1 2 . . . . . . . 3 . . . . . 1 . . . 1 . Parts Field Recycled . | . . . . . . . . . . . . . . . . . . . . . . Retrieved Matter . | . . . . . . . . . . . . . . . . . . . . . . Parts Self-Destructed . | . . . . . . . . . . . . . . . . . . . . . . Prevented . | . . . . . . . . . . . . . . . . . . . . . . Kills | -11 -10 -10 -10 -9 -8 -8 -8 -7 -7 -7 -7 -6 -6 -6 -6 -5 -5 -4 -4 -3 -3 ------- Run | Scr Mat Min Exi Min Mat Gar Mat Fac Gar Fac Gar Fac Gar Fac Gar Fac Gar Fac Gar Res Tes Combat Hostiles Destroyed 214 | . 19 3 . 3 1 25 18 . 31 18 10 1 12 . 2 13 7 . 13 23 15 Melee 20 | . . . . . . . . . . 7 2 1 3 . . . . . 1 . 6 Guns 56 | . 16 3 . . . 6 9 . 6 1 2 . 4 . 2 4 . . 3 . . Cannons 80 | . . . . . . 4 4 . 21 8 . . . . . 8 7 . 9 19 . AOE 48 | . 3 . . 3 . 12 4 . 4 2 6 . 4 . . . . . . 1 9 Classes Destroyed 20 | 2 4 . . . 1 1 3 . 1 3 1 . . . . . . . 2 2 . Worker 10 | . . . . . . . 2 . . 3 . . . . . 1 . . . 4 . Builder 4 | . 1 . . . . . . . . 2 . . . . . . . . . 1 . Tunneler 3 | 1 1 . . . . . 1 . . . . . . . . . . . . . . Hauler 3 | . . . . . . . 1 . . . . . . . . . . . . 2 . Recycler 8 | 1 1 . . . . . . . . 5 . . . . . . . 1 . . . Mechanic 3 | . . . . . . . . . . 1 . . . . . . . . . . 2 Operator 2 | . . . . . . . . . . 2 . . . . . . . . . . . Watcher 6 | . 2 . . . . . 2 . . 1 . . . . . . . . . 1 . Swarmer 52 | . 6 3 . 3 . 16 5 . 7 1 4 . 5 . . . . . 2 . . Cutter 3 | . . . . . . . . . . . . . . . . . . . 3 . . Grunt 84 | . 13 . . . . 4 5 . 19 7 6 . . . . 4 6 . 6 4 10 Brawler 6 | . . . . . . . . . 1 . . . 2 . . . . . . . 3 Duelist 6 | . . . . . . . 2 . 1 . 1 . 1 . . . . . . . 1 Sentry 25 | . . . . . 1 4 6 . 3 3 1 . . . 2 1 1 . . 2 1 Specialist 2 | . . . . . . . . . . . 1 . 1 . . . . . . . . Hunter 15 | . . . . . . 1 . . . 3 . . 3 . . 1 . . . 7 . Programmer 22 | . . . . . . . . . . 4 . 1 1 . . 7 . . 2 7 . Heavy 2 | . . . . . . . . . . . . . . . . . . . . 2 . Behemoth 1 | . . . . . . . . . . . . . . . . . . . 1 . . Striker 1 | . . . . . . . . . . . . . . . . . . . . 1 . Best Kill Streak 9 | 1 6 3 . 3 1 8 4 . 9 6 8 1 4 . 2 4 2 1 3 4 9 Combat Bots Only 9 | . 6 3 . 3 1 8 3 . 9 2 8 1 4 . 2 3 2 . 3 3 8 Max Kills in Single Turn 6 | 1 2 1 . 2 1 4 2 . 2 6 2 1 2 . 1 1 1 1 2 1 6 Gunslinging 1 | . 1 . . . . . . . . . . . . . . . . . . . . Exploded 5 | . 1 . . 2 . 4 2 . 2 2 2 . 2 . . . . . . 1 5 Melee 1 | . . . . . . . . . . 1 1 1 1 . . . . . 1 . 1 Uniques/NPCs Destroyed . | . . . . . . . . . . . . . . . . . . . . . . Combat | -11 -10 -10 -10 -9 -8 -8 -8 -7 -7 -7 -7 -6 -6 -6 -6 -5 -5 -4 -4 -3 -3 -------- Run | Scr Mat Min Exi Min Mat Gar Mat Fac Gar Fac Gar Fac Gar Fac Gar Fac Gar Fac Gar Res Tes Damage Taken 22631 | . 516 46 . 16 23 570 414 . 2048 1575 673 57 2078 . 429 1495 447 . 2528 4965 4751 Core 2878 | . 140 6 . . 12 35 31 . 174 268 100 12 162 . 124 173 90 . 245 325 981 Absorbed by Shields 111 | . . . . . . . . . . . 50 . 13 . . 32 . . 16 . . Redirected to Shielding 167 | . . . . . . . . . . . . . . . . . . . . 167 . Regen/Repaired (Parts) 234 | . . . . . . . 9 . . 225 . . . . . . . . . . . Core Remaining (%) 66 | 100 . . . 41 . . 85 . . . 22 . . . 64 . 73 . 78 . . Volleys Fired 676 | 3 44 9 . 2 . 34 38 3 88 49 12 . 33 . 4 71 66 8 60 142 10 Largest 2 | 2 2 2 . 1 . 2 2 1 2 2 2 . 2 . 2 2 2 2 2 2 2 Hottest 203 | 80 80 60 . 30 . 155 155 75 150 76 64 . 97 . 113 179 132 132 141 180 203 Shots Fired 1093 | 6 85 17 . 2 . 55 64 3 167 91 20 . 57 . 10 117 89 10 94 193 13 Gun 457 | 6 85 17 . . . 22 40 . 58 41 15 . 54 . 10 66 . . 30 13 . Cannon 506 | . . . . . . 28 20 3 104 50 . . . . . 36 66 10 54 128 7 Launcher 34 | . . . . 2 . 5 4 . 5 . 5 . 3 . . . . . 1 6 3 Special 96 | . . . . . . . . . . . . . . . . 15 23 . 9 46 3 Kinetic 532 | . 18 8 . . . 10 17 . 135 91 15 . 23 . 5 7 59 10 54 79 1 Thermal 328 | . 7 9 . . . 40 43 3 27 . . . 31 . 5 77 7 . 30 43 6 Explosive 34 | . . . . 2 . 5 4 . 5 . 5 . 3 . . . . . 1 6 3 Electromagnetic 103 | 6 60 . . . . . . . . . . . . . . 18 . . . 19 . Robot Hit Streak 48 | 6 15 10 . . . 16 34 . 48 25 9 . 44 . 11 26 22 10 19 16 11 Robot Miss Streak 5 | . 2 1 . . . 1 4 . 5 5 4 . 3 . . 2 1 . 2 4 . Penetration Max 2 | . . . . . . 1 1 . 1 1 . . . . . 1 1 . . 2 . Secondary Targets 10 | . 4 . . . . 3 . . . . 1 . . . 1 1 . . . . . Max Gunslinging Chain 1 | . 1 . . . . 1 . . . . 1 . . . 1 1 . . . . . Shots Hit Robots 997 | 6 62 13 . . 4 47 80 . 135 98 47 2 75 . 16 102 53 4 76 145 32 Core Hits 493 | 3 33 3 . 3 . 29 39 . 81 38 28 1 49 . 3 27 14 1 26 51 64 Critical Kills 7 | . . . . . . . 2 . . . . . . . . . 3 . . 2 . Critical Parts Destroyed 12 | . . . . . 1 2 . . . 1 . . 1 . . . 5 . . 2 . Critical Strikes 75 | . . . . . 3 2 2 . 10 11 1 . 6 . . 5 12 1 6 9 7 Burn 6 | . . . . . . . . . . . . . 2 . . 4 . . . . . Meltdown 2 | . . . . . . . 1 . . . . . . . . . . . . 1 . Destroy 16 | . . . . . . . 1 . . 1 . . 1 . . . 10 . . 3 . Blast 27 | . . . . . . . . . 10 6 . . . . . . 2 1 4 4 . Corrupt 2 | . . . . . . . . . . . . . . . . 1 . . . 1 . Smash 5 | . . . . . 3 2 . . . . . . . . . . . . . . . Sever 17 | . . . . . . . . . . 4 1 . 3 . . . . . 2 . 7 Melee Attacks 250 | . . . . . 9 20 31 4 . 50 59 2 30 . 12 . . . 8 1 24 Impact 24 | . . . . . 9 15 . . . . . . . . . . . . . . . Slashing 148 | . . . . . . . . 4 . 49 44 2 17 . . . . . 8 . 24 Piercing 1 | . . . . . . . . . . . . . . . . . . . . 1 . Sneak Attacks 44 | . . . . . . . 16 . . 12 9 . 7 . . . . . . . . Combat Hostiles 1 | . . . . . . . . . . 1 . . . . . . . . . . . Follow-up Attacks 11 | . . . . . . 1 . . . 5 3 1 1 . . . . . . . . Damage Inflicted 31911 | 82 996 127 . 142 114 1943 1553 . 3309 4001 2028 67 1697 . 110 2421 1104 152 2362 4735 4968 Guns 6578 | 82 786 126 . . . 360 760 . 884 520 158 . 865 . 110 1137 . . 482 308 . Cannons 11909 | . . . . . . 525 275 . 2044 924 . . . . . 1265 1104 152 1493 3851 276 Explosions 7969 | . 210 . . 142 . 782 505 . 381 749 530 . 325 . . . . . 127 534 3684 Melee 5348 | . . . . . 114 268 . . . 1784 1340 67 507 . . . . . 260 . 1008 Ramming 107 | . . 1 . . . 8 13 . . 24 . . . . . 19 . . . 42 . Kinetic 10023 | . 105 47 . . . 86 309 . 2328 1444 158 . 391 . 56 119 1007 152 1493 2284 44 Thermal 8033 | . 289 79 . . . 799 726 . 600 749 . . 474 . 54 2116 97 . 482 1336 232 Explosive 7010 | . . . . 142 . 782 505 . 381 . 530 . 325 . . . . . 127 534 3684 Electromagnetic 1390 | 82 602 . . . . . . . . . . . . . . 167 . . . 539 . Impact 382 | . . . . . 114 268 . . . . . . . . . . . . . . . Slashing 4966 | . . . . . . . . . . 1784 1340 67 507 . . . . . 260 . 1008 Piercing . | . . . . . . . . . . . . . . . . . . . . . . Highest Corruption 8 | . 2 2 2 2 . . . . 3 4 4 . 1 1 1 5 5 . 1 8 8 Average Corruption 2 | . 1 2 2 2 . . . . 3 3 3 . 1 1 1 4 5 . 1 4 4 Corruption Purged 4 | . . . . . . . . . . . 4 . . . . . . . . . . Corruption Blocked . | . . . . . . . . . . . . . . . . . . . . . . Effects 309 | . 11 4 4 7 . . . . 22 42 12 . 25 7 11 26 99 . 16 22 1 Message Errors 62 | . 1 1 . 1 . . . . 6 10 1 . 6 3 2 4 21 . 3 3 . Matter Fused 80 | . 3 1 . 2 . . . . 9 10 3 . 6 . 3 10 23 . 3 6 1 Heat Flow Errors 29 | . 2 . 2 . . . . . 2 1 1 . 2 1 1 4 11 . 1 1 . Energy Discharges 39 | . 3 . . 1 . . . . 1 8 . . 1 2 1 4 13 . 2 3 . Parts Rejected 6 | . . . . . . . . . 1 . 1 . 1 . . 2 . . . 1 . Data Loss (minor) 38 | . . 1 1 2 . . . . 1 6 3 . 4 1 . 2 11 . 1 5 . Data Loss (major) 24 | . . . 1 1 . . . . 1 1 1 . 1 . 2 . 11 . 5 . . Misfires 17 | . . . . . . . . . . 4 1 . 1 . 2 . 7 . . 2 . Alerts 11 | . 2 . . . . . . . 1 1 1 . 3 . . . 2 . 1 . . Weapon Failures 3 | . . 1 . . . . . . . 1 . . . . . . . . . 1 . Overload Shots . | . . . . . . . . . . . . . . . . . . . . . . Overflow Damage 1203 | . 17 . . . 22 137 41 . 12 556 115 . 16 . . 125 12 26 . 34 90 Projectiles 239 | . . . . . . 10 22 . 5 14 . . . . . 125 12 26 . 25 . Explosions 448 | . 17 . . . . 101 19 . 7 183 31 . . . . . . . . 3 87 Melee 516 | . . . . . 22 26 . . . 359 84 . 16 . . . . . . 6 3 Knockbacks 56 | . . . . . . . . . 8 5 . . . . . 1 6 3 9 23 1 Impact 4 | . . . . . . . . . . 1 . . . . . 1 . . . 2 . Kinetic 50 | . . . . . . . . . 8 4 . . . . . . 6 3 9 19 1 Secondary 2 | . . . . . . . . . . . . . . . . . . . . 2 . Self-Inflicted Damage 300 | . 85 . . . . 3 . . . 44 . . 39 . . . . . . . 129 Shots 9 | . 3 . . . . . . . . 1 . . 2 . . . . . . . 3 Rammed 9 | . . 1 . . . 2 1 . . . . . . . . 3 . . . 2 . Targets Rammed 12 | . . 1 . . . 2 1 . . 1 . . . . . 3 . . . 4 . Kicked 1 | . . . . . . . . . . 1 . . . . . . . . . . . Crushed 2 | . . . . . . . . . . . . . . . . . . . . 2 . Highest Temperature 585 | 36 156 40 225 . . 585 91 . 442 141 164 . 460 86 194 321 266 54 202 383 9 Average Temperature 90 | 18 47 17 105 . . 158 33 . 171 40 60 . 170 59 57 104 58 30 46 98 5 Received Heat Transfer 5236 | . 258 . . . 9 243 243 . 918 384 297 . 198 . 153 396 117 . 486 286 1248 Effects 16 | . . . . . . 11 . . . . . . 3 . . . . . . 2 . Shutdowns 5 | . . . . . . 3 . . . . . . 1 . . . . . . 1 . Energy Bleed 3 | . . . . . . 2 . . . . . . 1 . . . . . . . . Matter Decay 2 | . . . . . . 2 . . . . . . . . . . . . . . . Damage (minor) 6 | . . . . . . 4 . . . . . . 1 . . . . . . 1 . Siege Activations . | . . . . . . . . . . . . . . . . . . . . . . Robots Corrupted 2 | . . . . . . . . . . . . . . . . . . . . 2 . Combat Hostiles 2 | . . . . . . . . . . . . . . . . . . . . 2 . Parts Fried 8 | . 2 . . . 1 1 . . . . . . . . . . . . . 4 . Impact Corruptions 5 | . . . . . 2 2 . . . . . . . . . . . . . 1 . Robots Melted 6 | . . . . . . 2 1 . . . . . 1 . . 1 . . . 1 . Combat Hostiles 6 | . . . . . . 2 1 . . . . . 1 . . 1 . . . 1 . Parts Melted 22 | . . . . . . 2 5 . 1 . 1 . 3 . . 8 . . 1 1 . Heat Transferred 11098 | . 375 175 . . . 1377 1444 . 888 550 . . 898 . 150 3486 150 . 994 500 111 Parts Sabotaged 3 | . . . . . . . . . . . . . . . . . . . . . 3 Parts Stolen . | . . . . . . . . . . . . . . . . . . . . . . Parts Stripped . | . . . . . . . . . . . . . . . . . . . . . . Power Chain Reactions 4 | . 4 . . . . . . . . . . . . . . . . . . . . Missiles Intercepted . | . . . . . . . . . . . . . . . . . . . . . . Alert | -11 -10 -10 -10 -9 -8 -8 -8 -7 -7 -7 -7 -6 -6 -6 -6 -5 -5 -4 -4 -3 -3 ------- Run | Scr Mat Min Exi Min Mat Gar Mat Fac Gar Fac Gar Fac Gar Fac Gar Fac Gar Fac Gar Res Tes Peak Influence 1689 | 10 298 121 . 115 100 829 424 4 863 474 423 217 305 118 122 95 645 461 568 280 1689 Initial 392 | . 5 51 . . 37 57 348 . 1 392 12 192 10 118 . 13 49 293 284 277 40 Average 271 | 4 79 82 . 2 60 415 207 . 505 243 316 187 199 81 35 32 467 343 425 96 1592 Maximum Alert Level 5 | . 1 . . . . 3 2 . 3 2 2 1 1 . . . 2 2 2 1 5 Low Security (%) 43 | 100 97 100 . 100 100 32 38 100 22 25 14 58 51 100 100 100 6 . . 80 . Level 1 30 | . 2 . . . . 19 51 . 10 62 55 41 48 . . . 17 72 45 19 . Level 2 23 | . . . . . . 31 10 . 35 12 30 . . . . . 75 27 54 . . Level 3 2 | . . . . . . 16 . . 31 . . . . . . . . . . . . Level 4 . | . . . . . . . . . . . . . . . . . . . . . . Level 5 . | . . . . . . . . . . . . . . . . . . . . . . High Security . | . . . . . . . . . . . . . . . . . . . . . . Max Security . | . . . . . . . . . . . . . . . . . . . . . 99 Squads Dispatched 56 | . 5 . . . 1 . 3 . . 9 . . . 1 . 5 . 2 . 16 14 Investigation 17 | . 5 . . . 1 . 3 . . 3 . . . . . 3 . 2 . . . Extermination 10 | . . . . . . . . . . 4 . . . 1 . 2 . . . 3 . Reinforcement 14 | . . . . . . . . . . 2 . . . . . . . . . 12 . Assault 12 | . . . . . . . . . . . . . . . . . . . . . 12 Garrison 3 | . . . . . . . . . . . . . . . . . . . . 1 2 Intercept . | . . . . . . . . . . . . . . . . . . . . . . Searches Triggered . | . . . . . . . . . . . . . . . . . . . . . . Construction Impeded 1 | . . . . . . . . . . . . . . . . . . . . 1 . Haulers Reinforced 2 | . . . . . . . . . . . . . . . . . . . . 2 . Active Scanning Responses . | . . . . . . . . . . . . . . . . . . . . . . Cargo Convoy Interrupts 1 | . . . . . . . . . . . . . . . . . . . . 1 . Stealth | -11 -10 -10 -10 -9 -8 -8 -8 -7 -7 -7 -7 -6 -6 -6 -6 -5 -5 -4 -4 -3 -3 --------- Run | Scr Mat Min Exi Min Mat Gar Mat Fac Gar Fac Gar Fac Gar Fac Gar Fac Gar Fac Gar Res Tes Distress Signals 8 | . . . . . . . . . . 1 . . . . . 1 . . . 6 . Communications Jammed . | . . . . . . . . . . . . . . . . . . . . . . Distress Signals . | . . . . . . . . . . . . . . . . . . . . . . Times Spotted 487 | . 25 3 . 3 1 30 40 . 32 40 30 2 18 . 17 26 35 2 28 81 74 Peak Tracking Total 39 | . 4 3 . 3 2 7 5 . 9 7 7 1 4 1 7 4 5 3 6 5 39 Tactical Retreats 22 | . 2 . . . . . 1 . 4 2 1 . 1 . . 1 1 . . 8 1 Traps | -11 -10 -10 -10 -9 -8 -8 -8 -7 -7 -7 -7 -6 -6 -6 -6 -5 -5 -4 -4 -3 -3 ------- Run | Scr Mat Min Exi Min Mat Gar Mat Fac Gar Fac Gar Fac Gar Fac Gar Fac Gar Fac Gar Res Tes Traps Triggered 46 | . 1 . . . . 3 4 . . . 4 . 4 2 5 . 13 . 10 . . Indirectly . | . . . . . . . . . . . . . . . . . . . . . . Trap Hack Attempts 145 | . . . . . . 33 . . 8 . 104 . . . . . . . . . . Triggered 1 | . . . . . . . . . 1 . . . . . . . . . . . . Disarmed 4 | . . . . . . 1 . . 1 . 2 . . . . . . . . . . Reprogrammed 19 | . 1 . . . . 5 . . 1 . 12 . . . . . . . . . . Reused 1 | . 1 . . . . . . . . . . . . . . . . . . . . Traps Extracted . | . . . . . . . . . . . . . . . . . . . . . . Installed . | . . . . . . . . . . . . . . . . . . . . . . Triggered 3 | . 1 . . . . . . . . . . . . . . . . . . 2 . Machines | -11 -10 -10 -10 -9 -8 -8 -8 -7 -7 -7 -7 -6 -6 -6 -6 -5 -5 -4 -4 -3 -3 ---------- Run | Scr Mat Min Exi Min Mat Gar Mat Fac Gar Fac Gar Fac Gar Fac Gar Fac Gar Fac Gar Res Tes Machines Disabled 50 | . 1 . . . . 5 2 . 4 14 4 . 2 . 1 1 4 5 4 . 3 Max in Single Turn 10 | . 1 . . . . 1 1 . 1 10 1 . 1 . 1 1 1 . 1 . 1 Garrison Relay 22 | . . . . . . 4 . . 3 . 4 . 2 . 1 . 4 . 4 . . Machines Sabotaged . | . . . . . . . . . . . . . . . . . . . . . . Garrisons Compromised 1 | . . . . . . . . . . . . . . . . . . . . 1 . Overloaded Fab Kills . | . . . . . . . . . . . . . . . . . . . . . . Hacking | -11 -10 -10 -10 -9 -8 -8 -8 -7 -7 -7 -7 -6 -6 -6 -6 -5 -5 -4 -4 -3 -3 --------- Run | Scr Mat Min Exi Min Mat Gar Mat Fac Gar Fac Gar Fac Gar Fac Gar Fac Gar Fac Gar Res Tes Machines Accessed 52 | . 9 . . 1 5 . 13 1 . 8 . 4 . 2 . 4 . 2 . 3 . Terminals 30 | . 7 . . . 4 . 10 . . 2 . 1 . . . 3 . 1 . 2 . Fabricators 1 | . . . . . . . . . . 1 . . . . . . . . . . . Repair Stations 3 | . . . . . . . 1 . . 2 . . . . . . . . . . . Recycling Units 7 | . 2 . . . . . 1 . . 1 . 1 . 1 . . . . . 1 . Scanalyzers 3 | . . . . . . . 1 . . 1 . 1 . . . . . . . . . Garrison Access 7 | . . . . . 1 . . 1 . 1 . 1 . 1 . 1 . 1 . . . Total Hacks 115 | . 24 . . 1 12 . 30 2 . 20 . 6 . 4 . 9 . 4 . 3 . Successful 62 | . 15 . . 1 6 . 13 2 . 11 . 3 . 3 . 2 . 4 . 2 . Failed 53 | . 9 . . . 6 . 17 . . 9 . 3 . 1 . 7 . . . 1 . Catastrophic 11 | . 1 . . . . . 6 . . 1 . . . . . 2 . . . 1 . Database Lockouts . | . . . . . . . . . . . . . . . . . . . . . . Manual 56 | . 12 . 1 . 6 . 24 . . 5 . . . . . 7 . . . 1 . Terminals 71 | . 19 . . . 10 . 25 . . 5 . 2 . . . 7 . 1 . 2 . Fabricators 3 | . . . . . . . . . . 3 . . . . . . . . . . . Repair Stations 7 | . . . . . . . 2 . . 5 . . . . . . . . . . . Recycling Units 13 | . 5 . . . . . 1 . . 2 . 2 . 2 . . . . . 1 . Scanalyzers 6 | . . . . . . . 2 . . 3 . 1 . . . . . . . . . Garrison Access 14 | . . . . . 2 . . 2 . 2 . 1 . 2 . 2 . 3 . . . Terminal Hacks 27 | . 13 . . 1 4 . 7 . . . . . . . . . . 1 . 1 . Record 6 | . 6 . . . . . . . . . . . . . . . . . . . . Part Schematic 3 | . 2 . . . . . 1 . . . . . . . . . . . . . . Prototype ID Bank 3 | . 2 . . . 1 . . . . . . . . . . . . . . . . Open Door 1 | . . . . 1 . . . . . . . . . . . . . . . . . Open DSF 2 | . . . . . . . . . . . . . . . . . . 1 . 1 . Branch Access Points 1 | . . . . . 1 . . . . . . . . . . . . . . . . Terminal Index 2 | . 1 . . . 1 . . . . . . . . . . . . . . . . Fabricator Index 1 | . . . . . . . 1 . . . . . . . . . . . . . . Alert Level 1 | . . . . . . . 1 . . . . . . . . . . . . . . Unreport Threat 1 | . . . . . . . 1 . . . . . . . . . . . . . . Reprogram Traps 2 | . 2 . . . . . . . . . . . . . . . . . . . . Dispatch Records 1 | . . . . . . . 1 . . . . . . . . . . . . . . Recall Investigation 1 | . . . . . . . 1 . . . . . . . . . . . . . . Hauler Manifests 1 | . . . . . 1 . . . . . . . . . . . . . . . . Registered Components 1 | . . . . . . . 1 . . . . . . . . . . . . . . Fabricator Hacks 2 | . . . . . . . . . . 2 . . . . . . . . . . . Load Schematic 1 | . . . . . . . . . . 1 . . . . . . . . . . . Build 1 | . . . . . . . . . . 1 . . . . . . . . . . . Repair Station Hacks 6 | . . . . . . . 2 . . 4 . . . . . . . . . . . Scan Component 3 | . . . . . . . 1 . . 2 . . . . . . . . . . . Repair 3 | . . . . . . . 1 . . 2 . . . . . . . . . . . Recycling Unit Hacks 7 | . 2 . . . . . 1 . . 1 . 1 . 1 . . . . . 1 . Retrieve Components 7 | . 2 . . . . . 1 . . 1 . 1 . 1 . . . . . 1 . Scanalyzer 5 | . . . . . . . 2 . . 2 . 1 . . . . . . . . . Insert Component 3 | . . . . . . . 1 . . 1 . 1 . . . . . . . . . Analyze 2 | . . . . . . . 1 . . 1 . . . . . . . . . . . Garrison Access Hacks 13 | . . . . . 1 . . 2 . 2 . 1 . 2 . 2 . 3 . . . Unlock Access 7 | . . . . . 1 . . 1 . 1 . 1 . 1 . 1 . 1 . . . Coupler Status 6 | . . . . . . . . 1 . 1 . . . 1 . 1 . 2 . . . Unauthorized Hacks 2 | . . . . . 1 . 1 . . . . . . . . . . . . . . Terminals 2 | . . . . . 1 . 1 . . . . . . . . . . . . . . Assimilate 1 | . . . . . . . 1 . . . . . . . . . . . . . . Operators 1 | . . . . . 1 . . . . . . . . . . . . . . . . Fabricators . | . . . . . . . . . . . . . . . . . . . . . . Repair Stations . | . . . . . . . . . . . . . . . . . . . . . . Recycling Units . | . . . . . . . . . . . . . . . . . . . . . . Scanalyzers . | . . . . . . . . . . . . . . . . . . . . . . Garrison Access . | . . . . . . . . . . . . . . . . . . . . . . Data Cores Recovered . | . . . . . . . . . . . . . . . . . . . . . . Used . | . . . . . . . . . . . . . . . . . . . . . . Hacking Detections 41 | . 8 . . . 4 . 10 . . 8 . 3 . 1 . 4 . 1 . 2 . Full Trace Events 12 | . 4 . . . 1 . . . . 3 . . . . . 3 . 1 . . . Feedback Events 2 | . 2 . . . . . . . . . . . . . . . . . . . . Corruption 2 | . 2 . . . . . . . . . . . . . . . . . . . . Feedback Blocked . | . . . . . . . . . . . . . . . . . . . . . . Robot Schematics Acquired . | . . . . . . . . . . . . . . . . . . . . . . Robots Built . | . . . . . . . . . . . . . . . . . . . . . . Authchips . | . . . . . . . . . . . . . . . . . . . . . . Time . | . . . . . . . . . . . . . . . . . . . . . . Total Robot Build Rating . | . . . . . . . . . . . . . . . . . . . . . . Part Schematics Acquired 5 | . 2 . . . . . 2 . . 1 . . . . . . . . . . . Parts Built 1 | . . . . . . . . . . 1 . . . . . . . . . . . Authchips . | . . . . . . . . . . . . . . . . . . . . . . Time 25 | . . . . . . . . . . 25 . . . . . . . . . . . Total Part Build Rating 1 | . . . . . . . . . . 1 . . . . . . . . . . . Parts Repaired 3 | . . . . . . . 1 . . 2 . . . . . . . . . . . Time 120 | . . . . . . . 38 . . 82 . . . . . . . . . . . Parts Recycled . | . . . . . . . . . . . . . . . . . . . . . . Recycled Matter . | . . . . . . . . . . . . . . . . . . . . . . Retrieved Matter . | . . . . . . . . . . . . . . . . . . . . . . Retrieved Components 29 | . 4 . . . . . 10 . . 10 . 2 . 2 . . . . . 1 . Parts Scanalyzed 2 | . . . . . . . 1 . . 1 . . . . . . . . . . . Part Schematics Acquired 2 | . . . . . . . 1 . . 1 . . . . . . . . . . . Parts Damaged . | . . . . . . . . . . . . . . . . . . . . . . Bothacking | -11 -10 -10 -10 -9 -8 -8 -8 -7 -7 -7 -7 -6 -6 -6 -6 -5 -5 -4 -4 -3 -3 ------------ Run | Scr Mat Min Exi Min Mat Gar Mat Fac Gar Fac Gar Fac Gar Fac Gar Fac Gar Fac Gar Res Tes Used RIF Installer 6 | . . . . . . 1 . . 1 . 1 . . . 1 . 1 . 1 . . Coupler Efficiency 1 | . . . . . . . . . 1 . . . . . . . . . . . . Threat Obfuscator 1 | . . . . . . . . . . . 1 . . . . . . . . . . Zone Cloak 1 | . . . . . . . . . . . . . . . . . . . 1 . . Autooverride 1 | . . . . . . . . . . . . . . . 1 . . . . . . Autoassimilate 1 | . . . . . . . . . . . . . . . . . 1 . . . . Robots Hacked 116 | . . . . . . 3 15 . . 1 13 . 6 . 9 5 14 1 12 33 4 Non-combat 14 | . . . . . . . 7 . . . . . . . . 2 . . . 5 . Combat 102 | . . . . . . 3 8 . . 1 13 . 6 . 9 3 14 1 12 28 4 Autooverrided 9 | . . . . . . . . . . . . . . . . . 2 1 3 2 1 Autoassimilated 4 | . . . . . . . . . . . . . . . . . . . 2 2 . Robot Hacks Applied 130 | . . . . . . 3 23 . . 1 13 . 7 . 9 12 13 . 7 39 3 parse_system 2 | . . . . . . . 2 . . . . . . . . . . . . . . no_distress 1 | . . . . . . . . . . . . . . . . . . . . 1 . generate_echo 2 | . . . . . . . 2 . . . . . . . . . . . . . . start_evac 1 | . . . . . . . 1 . . . . . . . . . . . . . . find_fabricator 1 | . . . . . . . . . . . . . . . . 1 . . . . . find_dsf 2 | . . . . . . . . . . . . . . . . . . . . 2 . drop_inventory 6 | . . . . . . . 4 . . . . . . . . 1 . . . 1 . locate_stockpiles 2 | . . . . . . . . . . . . . . . . 1 . . . 1 . ignore_parts 1 | . . . . . . . . . . . . . . . . 1 . . . . . check_alert 1 | . . . . . . . . . . . . . . . . . . . . 1 . purge_threat 1 | . . . . . . . . . . . . . . . . . . . . 1 . locate_traps 1 | . . . . . . . . . . . . . . . . . . . . 1 . reprogram_traps 1 | . . . . . . . . . . . . . . . . . . . . 1 . map_route 1 | . . . . . . . . . . . . . . . . . . . . 1 . mark_security 1 | . . . . . . . . . . . . . . . . . . . . 1 . relay_feed 1 | . . . . . . . . . . . . . . . . . . . . 1 . find_shortcuts 7 | . . . . . . . 3 . . . . . 2 . . 1 1 . . . . find_garrison 1 | . . . . . . . . . . . . . . . . 1 . . . . . link_fov 4 | . . . . . . . 2 . . . . . . . . 2 . . . . . reboot_propulsion 1 | . . . . . . . . . . . . . 1 . . . . . . . . scatter_targeting 1 | . . . . . . . 1 . . . . . . . . . . . . . . spike_heat 2 | . . . . . . . . . . . . . . . . . . . . 2 . disable_weapons 2 | . . . . . . . . . . . . . . . . . 1 . . 1 . go_dormant 1 | . . . . . . . . . . . . . . . . . . . . 1 . overwrite_iff 6 | . . . . . . 3 2 . . . . . . . . 1 . . . . . streamctrl_high 32 | . . . . . . . 5 . . . 7 . 3 . 7 1 2 . 3 4 . formatsys_high 48 | . . . . . . . 1 . . 1 6 . 1 . 2 2 9 . 4 19 3 Relay Couplers Released 88 | . . . . . . 18 . . 9 . 16 . 10 . 5 . 13 . 17 . . Machine Destruction 88 | . . . . . . 18 . . 9 . 16 . 10 . 5 . 13 . 17 . . Attached 51 | . . . . . . 2 3 . 1 1 8 . 2 . 4 2 11 . 10 6 1 Fabnet Peak Effective % . | . . . . . . . . . . . . . . . . . . . . . . Robots Rewired 4 | . . . . . . . . . . . . . 4 . . . . . . . . Allies Hacked 1 | . . . . . . . . . . . . . . . . . . . . 1 . Hacks Repelled . | . . . . . . . . . . . . . . . . . . . . . . Allies | -11 -10 -10 -10 -9 -8 -8 -8 -7 -7 -7 -7 -6 -6 -6 -6 -5 -5 -4 -4 -3 -3 -------- Run | Scr Mat Min Exi Min Mat Gar Mat Fac Gar Fac Gar Fac Gar Fac Gar Fac Gar Fac Gar Res Tes Total Allies 99 | . . . . . . 3 7 . . 1 13 . 8 . 9 3 13 1 12 25 4 Largest Group 5 | . . . . . . 2 3 . . 1 4 . 3 2 2 3 5 2 3 5 2 Highest-Rated Group 261 | . . . . . . 10 47 . . 21 88 . 123 82 80 87 261 132 132 200 96 Highest-Rated Ally 89 | . . . . . . 5 16 . . 21 32 . 41 41 41 29 85 85 85 89 48 Total Orders 16 | . . . . . . . 8 . . . . . 2 . . . 4 . 2 . . STAY 7 | . . . . . . . 5 . . . . . . . . . 1 . 1 . . ROAM 3 | . . . . . . . . . . . . . 2 . . . 1 . . . . FOLLOW 5 | . . . . . . . 3 . . . . . . . . . 2 . . . . GUARD 1 | . . . . . . . . . . . . . . . . . . . 1 . . Ally Attacks 478 | . . . . . . 7 27 . . 12 55 . 23 . 42 26 104 8 35 124 15 Total Damage 12361 | . . . . . . 48 414 . . 251 1149 . 520 . 1209 380 2942 803 572 3580 493 Kills 92 | . . . . . . 3 3 . . 4 8 . 6 . 7 2 26 4 6 22 1 Allies Corrupted 2 | . . . . . . . . . . . . . . . . . 1 . . 1 . Allies Melted 1 | . . . . . . . . . . . . . . . . . . . . . 1 Intel | -11 -10 -10 -10 -9 -8 -8 -8 -7 -7 -7 -7 -6 -6 -6 -6 -5 -5 -4 -4 -3 -3 ------- Run | Scr Mat Min Exi Min Mat Gar Mat Fac Gar Fac Gar Fac Gar Fac Gar Fac Gar Fac Gar Res Tes Robot Analysis Total . | . . . . . . . . . . . . . . . . . . . . . . Derelict Logs Recovered 3 | . . 1 . 2 . . . . . . . . . . . . . . . . . Drone Launches 5 | . . . . . . . . . . . . . . . . . . . . 3 2 Drone Recoveries 1 | . . . . . . . . . . . . . . . . . . . . 1 . Exploration | -11 -10 -10 -10 -9 -8 -8 -8 -7 -7 -7 -7 -6 -6 -6 -6 -5 -5 -4 -4 -3 -3 ------------- Run | Scr Mat Min Exi Min Mat Gar Mat Fac Gar Fac Gar Fac Gar Fac Gar Fac Gar Fac Gar Res Tes Turns Passed 30167 | 110 1417 422 383 446 311 1491 2595 214 1638 2834 2173 436 2924 575 1012 1469 4237 287 2337 2585 271 Spaces Moved 12942 | 56 766 241 237 273 224 832 1274 112 788 1146 890 226 993 298 363 469 1494 101 835 1226 98 Core 32 | 11 . . . . . . . . . . . . . . . 3 . . . . 18 Treads 9170 | 45 766 241 237 273 57 672 1274 112 788 125 . . 232 . 195 417 1494 101 835 1226 80 Legs 3364 | . . . . . . . . . . 1021 890 226 761 298 168 . . . . . . Wheels 327 | . . . . . 167 160 . . . . . . . . . . . . . . . Hover 49 | . . . . . . . . . . . . . . . . 49 . . . . . Flight . | . . . . . . . . . . . . . . . . . . . . . . Fastest Speed 50 | 50 160 160 160 160 100 100 162 170 155 90 182 185 186 187 187 168 170 250 170 156 50 Average Speed 193 | 138 160 160 160 160 115 151 169 170 161 200 183 185 250 187 223 252 246 250 227 167 153 Slowest Speed 1850 | 160 160 160 160 160 160 163 250 170 170 360 266 190 540 187 560 1850 250 250 250 245 400 Overloaded Moves . | . . . . . . . . . . . . . . . . . . . . . . Propulsion Burnouts . | . . . . . . . . . . . . . . . . . . . . . . Robots Hopped . | . . . . . . . . . . . . . . . . . . . . . . Cave-ins Triggered . | . . . . . . . . . . . . . . . . . . . . . . Exploration Rate (%) 44 | 4 78 42 61 54 17 84 86 3 79 28 88 5 58 8 62 12 86 4 80 25 15 Regions Visited 21 Branch Regions 4 Pre-discovered Areas 4 | . . 1 . 3 . . . . . . . . . . . . . . . . . Known Exits Taken 11 | . 1 1 1 1 1 . . 1 . 1 . 1 . 1 . 1 . 1 . . . Unknown Exits Taken 3 | 1 . . . . . . 1 . . . . . . . . . . . . 1 . Scrap Searched 3 | . . 1 . 2 . . . . . . . . . . . . . . . . . Spaces Dug 37 | . . . . . 4 1 4 4 . 10 5 . . . . . 1 6 . 2 . Terrain Destroyed 382 | . 14 . . 18 4 12 57 4 15 60 11 . 16 . . 2 7 6 5 78 73 Melee 22 | . . . . . 4 1 . 4 . 7 5 . . . . . . . . 1 . Projectile 68 | . . . . . . . 10 . 1 14 . . . . . 2 7 6 5 23 . AOE 292 | . 14 . . 18 . 11 47 . 14 39 6 . 16 . . . . . . 54 73 Terrain Rammed . | . . . . . . . . . . . . . . . . . . . . . . Walls Destroyed . | . . . . . . . . . . . . . . . . . . . . . . Machines Disabled . | . . . . . . . . . . . . . . . . . . . . . . Actions | -11 -10 -10 -10 -9 -8 -8 -8 -7 -7 -7 -7 -6 -6 -6 -6 -5 -5 -4 -4 -3 -3 --------- Run | Scr Mat Min Exi Min Mat Gar Mat Fac Gar Fac Gar Fac Gar Fac Gar Fac Gar Fac Gar Res Tes Total 16747 | 82 878 261 241 280 266 983 1627 126 984 1534 1346 240 1347 317 557 644 1979 126 1175 1583 171 Wait 1829 | 6 48 6 4 1 11 12 228 3 60 214 211 7 209 5 131 40 343 17 194 65 14 Move 12924 | 55 765 240 236 272 224 831 1273 112 787 1145 888 226 992 297 362 469 1493 100 834 1225 98 Hop . | . . . . . . . . . . . . . . . . . . . . . . Pick Up 268 | 11 9 5 1 3 7 18 13 1 13 27 14 1 24 . 10 22 20 . 20 47 2 Fast Attach 41 | . . . . . 2 2 6 1 3 10 2 1 1 . . 3 1 . 1 2 6 Attach 152 | 6 5 . . . 4 4 3 . 9 7 8 2 18 1 6 15 6 . 20 31 7 Detach 6 | . . . . . 1 . . . . . . . . . . . . . . 5 . Swap 176 | 1 2 . . 1 4 14 21 1 7 14 23 1 11 2 8 7 15 1 12 27 4 Drop 177 | . 5 . . 1 5 15 13 1 7 24 12 1 11 2 7 14 17 . 6 30 6 Fire 676 | 3 44 9 . 2 . 34 38 3 88 49 12 . 33 . 4 71 66 8 60 142 10 Melee 232 | . . . . . 8 17 31 4 . 43 54 1 29 . 12 . . . 8 1 24 Ram 2 | . . . . . . 2 . . . . . . . . . . . . . . . Kick 1 | . . . . . . . . . . 1 . . . . . . . . . . . Crush 9 | . . 1 . . . . 1 . . . . . . . . 3 . . . 4 . Escape Stasis 101 | . . . . . . 1 . . 2 . 17 . 19 10 16 . 16 . 20 . . Rewire 8 | . . . . . . . . . . . 1 . . . 1 . 2 . . 4 . Trap 145 | . . . . . . 33 . . 8 . 104 . . . . . . . . . . Miscellaneous . | . . . . . . . . . . . . . . . . . . . . . . Route ------- -11/Scrapyard -10/Materials (discovered 3 exits: *Mat x2 / *Min) -10/Mines -10/Exiles (discovered 2 exits: *Min x2) -9/Mines -8/Materials -8/Garrison (discovered 3 exits: *Mat x3) -8/Materials (discovered 3 exits: *Fac x3) -7/Factory -7/Garrison (discovered 2 exits: *Fac x2) -7/Factory (discovered 2 exits: [*Low] / Gar) -7/Garrison (discovered 3 exits: *Fac x3) -6/Factory -6/Garrison (discovered 2 exits: *Fac x2) -6/Factory -6/Garrison (discovered 2 exits: *Fac x2) -5/Factory -5/Garrison (discovered 3 exits: *Fac x3) -4/Factory -4/Garrison (discovered 3 exits: *Res x3) -3/Research -3/Testing History --------- Turn | Location | Event 11 | -11/Scrapyard | Discovered new exit (range 16) 111 | -11/Scrapyard | Entered Materials 301 | -10/Materials | Build established: Mutant 326 | -10/Materials | Discovered new exit (range 6) 502 | -10/Materials | Discovered new exit (range 15) 728 | -10/Materials | Identified exit to Materials 824 | -10/Materials | Discovered exit to Materials (range 16) 1418 | -10/Materials | Core integrity fell below 50% 1520 | -10/Materials | Identified exit to Mines 1528 | -10/Materials | Entered Mines 1702 | -10/Mines | Assembled infested the area 1871 | -10/Mines | Learned location of Recycling (-7) 1887 | -10/Mines | Found a damaged Exp. Sensor Array with a note attached 1890 | -10/Mines | Found Prototype Device 1944 | -10/Mines | Discovered new exit (range 5) 1949 | -10/Mines | Identified exit to Exiles 1950 | -10/Mines | Entered Exiles 1989 | -10/Exiles | Discovered new exit (range 14) 2037 | -10/Exiles | Met 8R-AWN 2061 | -10/Exiles | Met EX-HEX 2109 | -10/Exiles | Met EX-BIN 2126 | -10/Exiles | Aligned with FarCom system 2128 | -10/Exiles | Given EX-Vault access code 2166 | -10/Exiles | Opened EX-Vault 2177 | -10/Exiles | Found Prototype Storage 2210 | -10/Exiles | Warned to stay clear of 0b10 Research branches 2259 | -10/Exiles | Met EX-DEC 2314 | -10/Exiles | Discovered new exit (range 14) 2330 | -10/Exiles | Identified exit to Mines 2333 | -10/Exiles | Left Exiles lab with Lightpack 2.0 2333 | -10/Exiles | Entered Mines 2342 | -9/Mines | Met a Derelict who couldn't figure out how to use a Trap Extractor 2391 | -9/Mines | Learned location of Zion (-7) 2403 | -9/Mines | Learned location of Storage (-7) 2756 | -9/Mines | Discovered new exit (range 8) 2777 | -9/Mines | Identified exit to Materials 2779 | -9/Mines | Entered Materials 2779 | -8/Materials | Evolved 4 slots: Propulsion x2, Utility x2 2779 | -8/Materials | Identified Exp. Sensor Array 3090 | -8/Materials | Identified exit to Garrison 3090 | -8/Materials | Entered Garrison 3095 | -8/Garrison | Installed Relay Interface Framework 3122 | -8/Garrison | Build established: Hacker-Mutant 3136 | -8/Garrison | Triggered checkpoint 3228 | -8/Garrison | Garrison Relay disabled 3314 | -8/Garrison | Triggered checkpoint 3476 | -8/Garrison | Build established: Mutant 3568 | -8/Garrison | Triggered checkpoint 3596 | -8/Garrison | Destroyed 8 combat bots 3626 | -8/Garrison | Triggered checkpoint 3706 | -8/Garrison | Discovered new exit (range 14) 3859 | -8/Garrison | Garrison Relay disabled 3928 | -8/Garrison | Triggered checkpoint 3952 | -8/Garrison | Triggered checkpoint 4110 | -8/Garrison | Discovered new exit (range 8) 4148 | -8/Garrison | Build established: Bothacker-Mutant 4188 | -8/Garrison | Triggered checkpoint 4223 | -8/Garrison | Garrison Relay disabled 4391 | -8/Garrison | Discovered new exit (range 10) 4452 | -8/Garrison | Triggered checkpoint 4501 | -8/Garrison | Garrison Relay disabled 4581 | -8/Garrison | Entered Materials 4895 | -8/Materials | Repaired Com. Battery 5551 | -8/Materials | Discovered new exit (range 11) 6123 | -8/Materials | Discovered new exit (range 15) 6277 | -8/Materials | Build established: Mutant 6713 | -8/Materials | Discovered new exit (range 16) 6826 | -8/Materials | Build established: Hacker-Mutant 7176 | -8/Materials | Entered Factory 7176 | -7/Factory | Evolved 2 slots: Utility x2 7390 | -7/Factory | Identified exit to Garrison 7390 | -7/Factory | Entered Garrison 7399 | -7/Garrison | Expanded RIF knowledge: Coupler Efficiency 7508 | -7/Garrison | Triggered checkpoint 7545 | -7/Garrison | Garrison Relay disabled 7745 | -7/Garrison | Triggered checkpoint 7817 | -7/Garrison | Destroyed 9 combat bots 8033 | -7/Garrison | Build established: Hacker-Skirmisher 8116 | -7/Garrison | Triggered checkpoint 8171 | -7/Garrison | Lost 3 parts (2n1u) 8322 | -7/Garrison | Triggered checkpoint 8431 | -7/Garrison | Discovered new exit (range 8) 8488 | -7/Garrison | Triggered checkpoint 8562 | -7/Garrison | Garrison Relay disabled 8678 | -7/Garrison | Triggered checkpoint 8876 | -7/Garrison | Discovered new exit (range 11) 8916 | -7/Garrison | Triggered checkpoint 8967 | -7/Garrison | Garrison Relay disabled 8990 | -7/Garrison | Build established: Bothacker-Mutant 9028 | -7/Garrison | Entered Factory 9093 | -7/Factory | Repaired Gauss Cannon 9157 | -7/Factory | Discovered new exit (range 11) 9632 | -7/Factory | Build established: Hacker-Mutant 9730 | -7/Factory | Fabricated Huge Storage Unit (x1) 10306 | -7/Factory | Repaired VSS Leg 10516 | -7/Factory | Core integrity fell below 50% 11099 | -7/Factory | Build established: Bothacker-Mutant 11859 | -7/Factory | Identified exit to Garrison 11862 | -7/Factory | Entered Garrison 11950 | -7/Garrison | Triggered checkpoint 11980 | -7/Garrison | Garrison Relay disabled 12228 | -7/Garrison | Destroyed 8 combat bots 12254 | -7/Garrison | Triggered checkpoint 12404 | -7/Garrison | Triggered checkpoint 12476 | -7/Garrison | Triggered checkpoint 12546 | -7/Garrison | Garrison Relay disabled 12732 | -7/Garrison | Discovered new exit (range 14) 12765 | -7/Garrison | Expanded RIF knowledge: Threat Obfuscation 13132 | -7/Garrison | Discovered new exit (range 9) 13190 | -7/Garrison | Triggered checkpoint 13231 | -7/Garrison | Garrison Relay disabled 13506 | -7/Garrison | Discovered new exit (range 10) 13560 | -7/Garrison | Triggered checkpoint 13725 | -7/Garrison | Garrison Relay disabled 14035 | -7/Garrison | Entered Factory 14035 | -6/Factory | Evolved 2 slots: Utility x2 14471 | -6/Factory | Identified exit to Garrison 14471 | -6/Factory | Entered Garrison 14514 | -6/Garrison | Triggered checkpoint 14556 | -6/Garrison | Garrison Relay disabled 15062 | -6/Garrison | Triggered checkpoint 15292 | -6/Garrison | Triggered checkpoint 15423 | -6/Garrison | Discovered new exit (range 12) 15908 | -6/Garrison | Triggered checkpoint 15964 | -6/Garrison | Garrison Relay disabled 16318 | -6/Garrison | Triggered checkpoint 16359 | -6/Garrison | Discovered new exit (range 14) 16446 | -6/Garrison | Triggered checkpoint 16448 | -6/Garrison | Triggered checkpoint 16660 | -6/Garrison | Lost 3 parts (2n1u) 17395 | -6/Garrison | Entered Factory 17395 | -6/Factory | Accompanied by 2 allies 17725 | -6/Factory | Identified exit to Garrison 17970 | -6/Factory | Entered Garrison 17970 | -6/Garrison | Accompanied by 2 allies 18012 | -6/Garrison | Triggered checkpoint 18068 | -6/Garrison | Garrison Relay disabled 18187 | -6/Garrison | Triggered checkpoint 18226 | -6/Garrison | Triggered checkpoint 18304 | -6/Garrison | Triggered checkpoint 18348 | -6/Garrison | Triggered checkpoint 18631 | -6/Garrison | Discovered new exit (range 11) 18715 | -6/Garrison | Build established: Scavenger-Mutant 18806 | -6/Garrison | Discovered new exit (range 8) 18835 | -6/Garrison | Expanded RIF knowledge: Autooverride 18982 | -6/Garrison | Entered Factory 18982 | -5/Factory | Evolved 2 slots: Utility x2 19779 | -5/Factory | Build established: Botlord-Mutant 19783 | -5/Factory | Lost 3 parts (2n1u) 20448 | -5/Factory | Identified exit to Garrison 20451 | -5/Factory | Entered Garrison 20697 | -5/Garrison | Assimilated Beast 6a with formatsys_high 20745 | -5/Garrison | Garrison Relay disabled 21098 | -5/Garrison | Triggered checkpoint 21125 | -5/Garrison | Triggered checkpoint 21486 | -5/Garrison | Triggered checkpoint 21528 | -5/Garrison | Discovered new exit (range 10) 22013 | -5/Garrison | Garrison Relay disabled 22178 | -5/Garrison | Triggered checkpoint 22377 | -5/Garrison | Spotted B-75 Beast 22395 | -5/Garrison | Allies destroyed B-75 Beast 22646 | -5/Garrison | Discovered new exit (range 9) 22792 | -5/Garrison | Triggered checkpoint 23086 | -5/Garrison | Triggered checkpoint 23177 | -5/Garrison | Garrison Relay disabled 23382 | -5/Garrison | Discovered new exit (range 10) 23420 | -5/Garrison | Expanded RIF knowledge: Autoassimilate 23656 | -5/Garrison | Triggered checkpoint 23690 | -5/Garrison | Garrison Relay disabled 24688 | -5/Garrison | Entered Factory 24688 | -4/Factory | Accompanied by 2 allies 24688 | -4/Factory | Evolved 2 slots: Utility x2 24972 | -4/Factory | Identified exit to Garrison 24975 | -4/Factory | Entered Garrison 24975 | -4/Garrison | Accompanied by 1 ally 24988 | -4/Garrison | Expanded RIF knowledge: Zone Cloak 25318 | -4/Garrison | Triggered checkpoint 25434 | -4/Garrison | Garrison Relay disabled 25601 | -4/Garrison | Spotted B-86 Titan 25716 | -4/Garrison | Lost 3 parts (2u1w) 25837 | -4/Garrison | Destroyed B-86 Titan 25854 | -4/Garrison | Lost 4 parts (1p1n1u1w) 26026 | -4/Garrison | Triggered checkpoint 26082 | -4/Garrison | Garrison Relay disabled 26189 | -4/Garrison | Discovered new exit (range 10) 26320 | -4/Garrison | Triggered checkpoint 26451 | -4/Garrison | Discovered new exit (range 10) 26520 | -4/Garrison | Triggered checkpoint 26609 | -4/Garrison | Garrison Relay disabled 26876 | -4/Garrison | Triggered checkpoint 26968 | -4/Garrison | Triggered checkpoint 27004 | -4/Garrison | Garrison Relay disabled 27074 | -4/Garrison | Discovered new exit (range 15) 27168 | -4/Garrison | Triggered checkpoint 27312 | -4/Garrison | Entered Research 27312 | -3/Research | Accompanied by 2 allies 27312 | -3/Research | Evolved 2 slots: Propulsion x2 27929 | -3/Research | Lost 5 parts (1p2n2u) 28259 | -3/Research | Lost 3 parts (1n2u) 28289 | -3/Research | Discovered new exit (range 13) 28997 | -3/Research | Cargo convoy interrupted 29017 | -3/Research | P-80 Master assimilated allied Warden 8b 29022 | -3/Research | P-80 Master assimilated allied Veteran 8b 29076 | -3/Research | Garrison activated, responded to threat 29504 | -3/Research | Spotted Striker 29519 | -3/Research | Destroyed Striker 29897 | -3/Research | Entered Testing 29898 | -3/Testing | Maximum security lockdown engaged 30048 | -3/Testing | Garrison activated, responded to threat 30088 | -3/Testing | Found Prototype Slashing Weapon 30088 | -3/Testing | Identified Vibroblade 30115 | -3/Testing | Lost 12 parts (1p5n4u2w) 30122 | -3/Testing | Core integrity fell below 50% 30129 | -3/Testing | Spotted Investigator 30168 | -3/Testing | Core integrity fell below 20% 30168 | -3/Testing | Destroyed by Y-72 Warden with Railgun Last Messages --------------- 30161_ Y-72 Warden heat damages Quantum Rifle. 30163_ G-73 Enforcer Myomer Leg severed. 30165_ G-73 Enforcer destroyed. 30167_ Critical hit (Burn: +50). 30168_ Critical hit (Burn: +37). 30168_ Vacuum Chamber explodes. 30168_ G-67 Veteran destroyed. 30168_ Y-72 Warden destroyed. 30168_ G-67 Veteran destroyed. 30168_ Destroyed Lgt. Antimatter Reactor. 30168_ B-74 Champion destroyed. 30168_ Destroyed Unknown Energy Gun. 30168_ Destroyed Unknown Wheel. 30168_ Destroyed Unknown Processor. 30168_ M-36 Artificer destroyed. 30168_ G-73 Enforcer destroyed. 30168_ L-61 Swordsman destroyed. 30168_ Penetrated by Slug. 30168_ Slug penetrates Earth. 30168_ Penetrated by Slug. Map ----- +----------------------------------------------------+ | ??????????????????###########% # """ ### | | ?????????????????????????# / % %!% """ #?? | | ?????????????????????????# %= = ! """ #?? | | ?????????????????????????# =/ %*% """ #?? | | ?????????????????????????# " [ #?? | | ????????????????????????## = "?? | | ????????????????????????# %= %# ???? | | ?????????????????????????# !=[%! %= "" ???? | | ?????????????????????????# ! % ! """ "?? | | ?????????????????????????# %! "F "?? | | ???????????????????????????#%%]%% """ #?? | | ???????????????????????????##]!w "" #?? | | ????????????????????????????#%] #?? | | ????????????????????????????#/!= #?? | | ????????????????????????????#!*]!######+########?? | | ????????????????????????????#!C/!#???????????????? | | ????????????????????????????#ib! #???????????????? | | ???????????????????????????##Kg #???????????????? | | ??????????????????????##### # g%%#???????????????? | | ????????????????????### # hgi#???????????????? | | ????????????????????# g =g*mpp %#???????????????? | | ???????????????????## bgYYgmgihp#???????????????? | | ???????????????????# %*bcg! #???????????????? | | ???????????????????# Y =gg ####???????????????? | | ???????????????????# Y%%%g= #?????????????????? | | ????????????????????# %%!@*% #??????????????????? | | ???????????????????# #??????????????????? | | ???????????????????# #??????????????????? | | ???????????????????## # #??????????????????? | | ????????????????????## ## #####??????????????????? | | ?????????????????????##?# #??????????????????????? | | ????????????????????????# #??????????????????????? | | ????????????????????????###??????????????????????? | | ?????????????????????????????????????????????????? | | ?????????????????????????????????????????????????? | | ?????????????????????????????????????????????????? | | ?????????????????????????????????????????????????? | | ?????????????????????????????????????????????????? | | ?????????????????????????????????????????????????? | | ?????????????????????????????????????????????????? | | ?????????????????????????????????????????????????? | | ?????????????????????????????????????????????????? | | ?????????????????????????????????????????????????? | | ?????????????????????????????????????????????????? | | ?????????????????????????????????????????????????? | | ?????????????????????????????????????????????????? | | ?????????????????????????????????????????????????? | | ?????????????????????????????????????????????????? | | ?????????????????????????????????????????????????? | | ?????????????????????????????????????????????????? | +----------------------------------------------------+ Best States ------------- Heat Dissipation 136 Coolant Potential 65 Energy Generation 21 Energy Capacity 665 Matter Stores 550 Matter Capacity 550 Sight Range 22 Robot Scan Range 20 Terrain Scan Range 20 Terrain Scan Density 10 Power Amplification 20 Additional Mass Support 9 Base Temperature (-) 100 Corruption Containment 12 Armor Coverage 1200 Resistance: KI 40 Resistance: TH 30 Resistance: EX 20 Resistance: EM 20 Resistance: I 20 Resistance: S 20 Resistance: P 20 Weapon Shielding 90 Melee Speed Boost 20 Evasion (%) 57 Armor Integrity Analysis 30 Recoil Reduction 6 Matter Filtering 30 Energy Filtering 50 Salvage Targeting 2 Offensive Hacking 20 Defensive Hacking 10 Relay Coupler Types 10 Relay Coupler Value 427 Item Schematics ----------------- Lrg. Storage Unit | -10/Materials | Hacked Cargo Storage Unit | -10/Materials | Hacked Huge Storage Unit | -8/Materials | Hacked Com. Battery | -8/Materials | Scanalyzed VSS Leg | -7/Factory | Scanalyzed Robot Schematics ------------------ None Fabricated ------------ Huge Storage Unit | x1 | -7/Factory Alien Tech Used ----------------- None Achievements -------------- Beloved Collateral Damage Generalissimo Pwned Challenges ------------ None Game ------ Seed CentriumHellfireDoomcannon Manual? 0 Play Time 05:23:46 Cumulative 209.0 hours Start 2022.08.13 @ 18:17:14 End 2022.08.15 @ 16:04:42 Sessions 5 Manual Loads 0 Difficulty Adventurer Special Mode None Game No. 230 Rogue 110 Adventurer 71 Explorer 49 Win Type - Total 8 Types 7/0/1/0/0/0/0/0/0 Lore% 31 Gallery% 64 Achievement% 55 Wizard Run 0 Options --------- ASCII 0 Keyboard 0 Movement Mouse Keybinds 0 Fullscreen 1 Font 12/Smallcaps Map View 83x54 Tactical HUD 1 Map Filters NONE Filters NONE Steam 1 RUN: 71757456-c6a5-448e-ae06-a9892aa7e32d